{"text_format":"1","workbook":"xlsx","n_sheets":4,"sheets":["Original_V06","Fehlercodes","Codes d'erreur","Codici di errore"],"not_rendered":{"charts":0,"images":19,"macros":1,"external_links":0,"defined_names":13,"comments":1,"pivot_tables":0},"unopened":[],"bounds":{"document_bytes":16777216,"sheet_cells":100000,"rows_first":2000,"rows_last":500,"rows_between":2000,"halvings":0,"cell_chars":16384,"cell_head_chars":4096},"cells_cut":0,"cells_raw":0,"read":"whole","date_system":"1900"}

{"sheet":"Original_V06","index":0,"n_rows":64,"n_cols":12,"rows_kept":64,"cut":false,"hidden":false,"merged":[[5,8,5,12],[3,1,3,2],[29,3,29,4],[29,5,29,12],[3,7,3,12],[3,5,3,6],[27,5,27,12],[18,0,18,12],[23,5,24,6],[23,7,24,8],[23,9,24,10],[23,11,24,12],[12,9,12,12],[13,9,13,12],[10,7,10,12],[24,2,24,3],[43,10,43,12],[27,3,27,4],[5,3,5,6],[28,3,28,4],[30,3,30,4],[39,7,39,9],[28,5,28,12],[30,5,30,12],[31,5,31,12],[32,5,32,12],[33,5,33,12],[38,7,38,9],[35,7,35,9],[36,7,36,9],[37,7,37,9],[31,3,31,4],[38,10,38,12],[40,7,40,9],[40,10,40,12],[36,1,36,5],[35,1,35,5],[33,3,33,4],[37,1,37,5],[39,10,39,12],[32,3,32,4],[54,7,54,12],[42,1,42,5],[41,1,41,5],[46,0,48,4],[45,10,45,12],[46,10,46,12],[47,10,47,12],[47,7,47,9],[46,7,46,9],[45,7,45,9],[53,2,53,6],[53,7,53,8],[49,5,49,7],[41,7,41,9],[25,11,25,12],[25,9,25,10],[25,7,25,8],[25,5,25,6],[42,7,42,9],[41,10,41,12],[44,10,44,12],[42,10,42,12],[40,1,40,5],[39,1,39,5],[38,1,38,5],[35,10,35,12],[36,10,36,12],[37,10,37,12],[6,1,6,2],[24,0,24,1],[25,0,25,1],[15,0,15,12],[21,0,21,12],[8,7,8,12],[12,1,12,2],[11,1,11,2],[10,1,10,2],[8,1,8,2],[7,1,7,2],[10,4,10,6],[12,3,12,8],[13,1,13,8],[25,2,25,3]]}
[]
["MUSS-Felder / Champs obligatoires          "]
[]
["Nr. / N°",null,null,null,null,"Datum / Date:"]
[]
["Servicestelle/ Station de service:",null,null,"Auftrag / Ordre ",null,null,null,"SA / "]
["Name / Nom"]
["PLZ Ort / CP Lieu"]
["MWST / TVA",null,null,null,null,null,"Code:"]
[]
["Marke / Marque:",null,null,null,"Modell / Modèle:"]
["Serien-Nr/N° série:"]
["Kaufort/Lieu d'achat:",null,null,"Kaufdatum / Date d'achat:"]
[null,"Garantieverlängerung / Extension de garantie N°:"]
["Art des Defektes / Défectuosité:"]
[]
[]
["Standortadresse (genaue Adresse) / Emplacement (adresse précise)"]
[]
[]
["Eigentümer (genaue Adresse) / Propriétaire (adresse précise)"]
[]
[]
[null,null,null,null,null,"Fehlergruppe Groupe d'erreur",null,"Fehlerart   Type d'erreur",null,"Fehlerort    Lieu  d'erreur",null,"Tätigkeit Action"]
["Arbeitsauftrag vom / Demande de réparation du:"]
["Ausgeführt am / Exécutée le"]
[]
["Datum                 Date","Art der Arbeit                                                Spécification des travaux","Std.                    Heures","Ansatz  Tarif",null,"Vergütung Compensation"]
[null,null,null,null,null,{"$f":"C29*D29","v":0}]
[null,null,null,null,null,{"$f":"C30*D30","v":0}]
[null,null,null,null,null,{"$f":"C31*D31","v":0}]
[null,null,null,null,null,{"$f":"C32*D32","v":0}]
[null,null,null,null,null,{"$f":"C33*D33","v":0}]
["Reisepauschale (einmalig) / Déplacement (uniquement)",null,null,null,null,{"$f":"D34","v":0}]
[]
["Artikel-Nummer       N° d'article","Bezeichnung                                                             Description",null,null,null,null,"Stk.               Quant","Nettopreis pro Stk.                Prix net par pièce",null,null,"Vergütung  Compensation"]
[null,null,null,null,null,null,null,null,null,null,{"$f":"H37*G37","v":0}]
[null,null,null,null,null,null,null,null,null,null,{"$f":"+H38*G38","v":0}]
[null,null,null,null,null,null,null,null,null,null,0]
[null,null,null,null,null,null,null,null,null,null,0]
[null,null,null,null,null,null,null,null,null,null,0]
[null,null,null,null,null,null,null,null,null,null,0]
[null,"Porti",null,null,null,null,null,null,null,null,0]
[null,null,null,null,null,null,null,null,null,null,{"$f":"SUM(K37:K43)","v":0}]
[]
[null,null,null,null,null,null,null,"Subtotal",null,null,{"$f":"F29+F30+F31+F32+F33+F34+K37+K38+K39+K40+K41+K42+Text8","v":0}]
["Der Garantieantrag muss innert 30 Tage nach Ausführdatum eingesandt werden. Spätestens nach 3 Monaten verfällt der Anspruch.                                                                                                    La demande doit être envoyée dans les 30 jours après la date d'intervention. 3 mois après la date d'exécution la demande devient caduque.",null,null,null,null,null,null,"MWST / TVA  7.7%",null,null,{"$f":"ROUND(20*(K46*7.7%),0)/20","v":0}]
[null,null,null,null,null,null,null,"Total",null,null,{"$f":"SUM(K46:K47)","v":0}]
[]
["FORS AG/SA, Service/Garantie, Schaftenholzweg 8, 2557 Studen BE"]
[]
[]
[]
["Wird von FORS ausgefüllt / A remplir par FORS",null,null,null,null,null,null,"Interne Nr.:"]
[]
[]
["Datum:",null,"Grund / Raison:"]
["Konto 4300/1/2/3/4/",{"$f":"ROUND(20*((F29+F31)*108%),0)/20","v":0}]
["Konto 4305",{"$f":"ROUND(20*((SUM(K37:K42))*108%),0)/20","v":0}]
["Konto 4310",{"$f":"ROUND(20*(F32*108%),0)/20","v":0}]
["Konto 4311",{"$f":"ROUND(20*(F33*108%),0)/20","v":0}]
["Konto 4312",{"$f":"ROUND(20*(F34*108%),0)/20","v":0}]
["Konto 4313",{"$f":"ROUND(20*((G43*H43)*108%),0)/20","v":0}]
["Visum:"]

{"sheet":"Fehlercodes","index":1,"n_rows":0,"n_cols":0,"rows_kept":0,"cut":false,"hidden":false,"merged":[]}

{"sheet":"Codes d'erreur","index":2,"n_rows":0,"n_cols":0,"rows_kept":0,"cut":false,"hidden":false,"merged":[]}

{"sheet":"Codici di errore","index":3,"n_rows":0,"n_cols":0,"rows_kept":0,"cut":false,"hidden":false,"merged":[]}